Cogmind - Beta 14 @@@ ROGUE MODE // 2025.03.08 @ 22:48:33 Player: Redclaw Result: Destroyed by L-41 Fighter with Axe Performance ------------- Evolutions (3) 1500 Regions Visited (6) 1200 Robots Destroyed (47) 235 Value Destroyed (1633) 1633 Prototype IDs (1) 20 Alien Tech Used (0) 0 Bonus (28) 28 TOTAL SCORE: 4616 Bonus ------- High Alert Combat Kills 28 Cogmind --------- Core Integrity 0/700 Matter 36/300 Energy 79/100 System Corruption 3% Temperature Cool (25) Movement Core (1500) Ox29 Location -7/Factory Parts ------- > --- POWER (1) -------- (None) > --- PROPULSION (3) --- (None) > --- UTILITY (6) ------ Huge Storage Unit Improved Signal Interpreter > --- WEAPON (3) ------- Assault Cannon Grenade Launcher > --- INVENTORY (25) --- Large Storage Unit Advanced Weight Redist. System Advanced Targeting Computer Advanced Targeting Computer Core Shielding Power Shielding Weapon Shielding Medium Armor Plating Hacking Suite System Shield System Shield Shock Rifle Heavy Particle Gun Assault Cannon Enhanced Flamer Katana Spear Peak State ------------ > --- POWER ------------ Light Deuterium Engine > --- PROPULSION ------- Improved Hover Unit > --- UTILITY ---------- Huge Storage Unit Advanced Weight Redist. System Improved Signal Interpreter Advanced Targeting Computer Medium Armor Plating Medium Armor Plating > --- WEAPON ----------- Pulse Rifle Ion Cannon Gauss Cannon > --- INVENTORY -------- Large Storage Unit Advanced Weight Redist. System Advanced Targeting Computer Advanced Targeting Computer Core Shielding Power Shielding Weapon Shielding Medium Armor Plating Hacking Suite System Shield System Shield Shock Rifle Heavy Particle Gun Assault Cannon Assault Cannon Grenade Launcher Enhanced Flamer Katana Spear [Rating: 33] Favorites ----------- Power Light Ion Engine Engine Light Ion Engine Power Core Nuclear Core Propulsion Light Treads Treads Light Treads Wheel Compact Wheel Hover Unit Improved Hover Unit Utility Huge Storage Unit Device Advanced Weight Redist. System Storage Huge Storage Unit Processor Targeting Computer Protection Medium Armor Plating Weapon Assault Rifle Energy Gun Medium Laser Energy Cannon Ion Cannon Ballistic Gun Assault Rifle Ballistic Cannon Assault Cannon Launcher Grenade Launcher Slashing Weapon Katana Build | -11 -10 -10 -10 -9 -8 -7 ------- Run | Yrd Mat Min Exi Min Mat Fac Slots Evolved 6 | . . . . . 4 2 Power . | . . . . . . . Propulsion 1 | . . . . . 1 . Utility 4 | . . . . . 2 2 Weapon 1 | . . . . . 1 . Parts Attached 47 | 4 8 . . 3 9 23 Power 5 | 1 . . . . 1 3 Engine 4 | 1 . . . . 1 2 Core 1 | . . . . . . 1 Reactor . | . . . . . . . Propulsion 9 | 2 . . . 2 3 2 Treads 2 | 2 . . . . . . Leg . | . . . . . . . Wheel 6 | . . . . 2 3 1 Hover 1 | . . . . . . 1 Flight . | . . . . . . . Utility 13 | 1 3 . . . 2 7 Device 2 | . . . . . . 2 Storage 3 | 1 2 . . . . . Processor 3 | . 1 . . . 1 1 Hackware . | . . . . . . . Protection 5 | . . . . . 1 4 Artifact . | . . . . . . . Weapon 20 | . 5 . . 1 3 11 Energy Gun 4 | . 1 . . . 1 2 Energy Cannon 1 | . . . . . . 1 Ballistic Gun 3 | . 2 . . 1 . . Ballistic Cannon 5 | . . . . . 1 4 Launcher 5 | . 2 . . . . 3 Special Weapon . | . . . . . . . Impact Weapon . | . . . . . . . Slashing Weapon 2 | . . . . . 1 1 Piercing Weapon . | . . . . . . . Special Melee Weapon . | . . . . . . . Unidentified Prototypes 1 | . . . . . . 1 Parts Lost 17 | . . . . 2 2 13 Power 3 | . . . . 1 . 2 Propulsion 4 | . . . . . 1 3 Utility 4 | . . . . . . 4 Weapon 6 | . . . . 1 1 4 Highest Loss Streak 4 | . . . . 2 1 4 To Critical Strikes . | . . . . . . . Average Slot Usage (%) 93 | . 91 100 100 86 85 79 Engine 11 | . 14 14 14 1 5 2 Treads 20 | . 28 28 28 14 . . Wheel 4 | . . . . 14 23 11 Storage 12 | . 14 14 14 14 9 7 Processor 13 | . 9 14 14 14 14 15 Protection 2 | . . . . . 8 13 Energy Gun 11 | . 11 14 14 5 6 5 Ballistic Gun 11 | . 11 14 14 22 13 . Ballistic Cannon 1 | . . . . . 4 7 Peak Build Rating 33 | 4 7 8 8 8 25 33 Average Rating 11 | 3 6 7 8 7 18 28 On Entrance 8 | . 4 7 8 8 7 25 Naked Turns . | . . . . . . . Heaviest Build 118 | 8 87 87 87 84 100 118 Greatest Support 42 | 40 40 40 40 32 42 42 Greatest Overweight (x) 31 | 1 2 2 2 2 3 31 Average Overweight (x) 2 | . . 2 2 2 2 4 Largest Inventory Capacity 25 | 8 25 25 25 25 25 25 Average Capacity 23 | 7 17 25 25 25 25 25 Most Carried 25 | 5 7 11 11 11 25 25 Average Carried 11 | 3 4 9 11 9 16 21 Final Capacity 25 | 8 25 25 25 25 25 25 Final Carried 23 | 5 7 11 11 9 23 17 Class Distribution -------------------- 78% | Mutant 10% | Gunner 3% | Scavenger-Tank Dominant Class ---------------- Mutant | -10/Materials Mutant | -10/Mines Mutant | -10/Exiles Mutant | -9/Mines Gunner | -8/Materials Gunner | -7/Factory Resources | -11 -10 -10 -10 -9 -8 -7 ----------- Run | Yrd Mat Min Exi Min Mat Fac Matter Collected 1165 | 144 184 103 . 47 363 324 Remotely . | . . . . . . . Salvage Created 1501 | . 344 . . 47 582 528 Parts 74 | . 13 . . 3 23 35 Haulers Intercepted . | . . . . . . . Recyclers Shooed 3 | . . . . . 1 2 Parts Field Recycled . | . . . . . . . Retrieved Matter . | . . . . . . . Parts Self-Destructed . | . . . . . . . Prevented . | . . . . . . . Kills | -11 -10 -10 -10 -9 -8 -7 ------- Run | Yrd Mat Min Exi Min Mat Fac Combat Hostiles Destroyed 35 | . 8 . . 3 10 14 Guns 14 | . 5 . . 3 4 2 Cannons 9 | . . . . . 5 4 AOE 10 | . 3 . . . . 7 Classes Destroyed 12 | . 2 . . 1 7 2 Worker 3 | . . . . . 1 2 Builder 1 | . . . . . 1 . Recycler 1 | . . . . . 1 . Operator 1 | . . . . . 1 . Watcher 6 | . 2 . . . 2 2 Swarmer 8 | . . . . 3 . 5 Grunt 15 | . 8 . . . 4 3 Brawler 1 | . . . . . 1 . Duelist 1 | . . . . . . 1 Sentry 3 | . . . . . 3 . Hunter 5 | . . . . . 2 3 Programmer 2 | . . . . . . 2 Best Kill Streak 4 | . 4 . . 2 2 4 Combat Bots Only 4 | . 3 . . 2 2 4 Max Kills in Single Turn 2 | . 1 . . 1 1 2 Gunslinging . | . . . . . . . Exploded 2 | . 1 . . . . 2 Melee . | . . . . . . . Uniques/NPCs Destroyed . | . . . . . . . Combat | -11 -10 -10 -10 -9 -8 -7 -------- Run | Yrd Mat Min Exi Min Mat Fac Hostile Shots Fired 306 | . 31 . . 44 64 167 Missed 82 | . 7 . . 11 20 44 Damage Taken 3576 | . 334 . . 259 704 2279 Core 931 | . 67 . . 50 74 740 Absorbed by Shields . | . . . . . . . Core Remaining (%) 79 | 100 . . . 53 86 . Volleys Fired 146 | . 22 1 . 16 54 53 Largest 3 | . 2 2 . 2 3 3 Hottest 178 | . 80 70 . 70 129 178 Shots Fired 331 | . 40 2 . 31 143 115 Gun 212 | . 34 2 . 31 111 34 Cannon 101 | . . . . . 32 69 Launcher 18 | . 6 . . . . 12 Special . | . . . . . . . Kinetic 177 | . 16 1 . 19 108 33 Thermal 136 | . 18 1 . 12 35 70 Explosive 18 | . 6 . . . . 12 Electromagnetic . | . . . . . . . Robot Hit Streak 9 | . 8 . . 9 9 7 Robot Miss Streak 5 | . 1 . . 5 4 5 Penetration Max . | . . . . . . . Secondary Targets 2 | . 1 . . 1 . . Max Gunslinging Chain 1 | . 1 . . 1 . . Shots Hit Robots 196 | . 29 . . 16 85 66 Core Hits 98 | . 20 . . 3 33 42 Critical Kills . | . . . . . . . Critical Parts Destroyed 2 | . . . . . 2 . Critical Strikes 6 | . . . . . 5 1 Burn 3 | . . . . . 2 1 Destroy 2 | . . . . . 2 . Blast 1 | . . . . . 1 . Melee Attacks . | . . . . . . . Impact . | . . . . . . . Slashing . | . . . . . . . Piercing . | . . . . . . . Sneak Attacks . | . . . . . . . Combat Hostiles . | . . . . . . . Follow-up Attacks . | . . . . . . . Damage Inflicted 4736 | . 737 . . 195 1391 2413 Guns 1837 | . 321 . . 195 933 388 Cannons 1389 | . . . . . 458 931 Explosions 1510 | . 416 . . . . 1094 Melee . | . . . . . . . Ramming . | . . . . . . . Kinetic 1679 | . 166 . . 110 998 405 Thermal 1547 | . 155 . . 85 393 914 Explosive 1510 | . 416 . . . . 1094 Electromagnetic . | . . . . . . . Impact . | . . . . . . . Slashing . | . . . . . . . Piercing . | . . . . . . . Highest Corruption 3 | . . . . . . 3 Average Corruption 2 | . . . . . . 2 Corruption Purged . | . . . . . . . Corruption Blocked . | . . . . . . . Effects 1 | . . . . . . 1 Message Errors 1 | . . . . . . 1 Overload Shots . | . . . . . . . Overflow Damage 14 | . . . . . 11 3 Projectiles 14 | . . . . . 11 3 Explosions . | . . . . . . . Melee . | . . . . . . . Knockbacks 6 | . . . . . 2 4 Impact . | . . . . . . . Kinetic 6 | . . . . . 2 4 Secondary . | . . . . . . . Self-Inflicted Damage 119 | . . . . . . 119 Shots 6 | . . . . . . 6 Rammed . | . . . . . . . Targets Rammed . | . . . . . . . Kicked . | . . . . . . . Crushed . | . . . . . . . Highest Temperature 416 | . 158 9 . 24 235 416 Average Temperature 95 | . 57 6 . 12 58 138 Received Heat Transfer 912 | . 174 . . . 243 495 Effects 7 | . . . . . . 7 Shutdowns 2 | . . . . . . 2 Interference 4 | . . . . . . 4 Damage (minor) 1 | . . . . . . 1 Siege Activations . | . . . . . . . Robots Corrupted . | . . . . . . . Combat Hostiles . | . . . . . . . Parts Fried . | . . . . . . . Impact Corruptions . | . . . . . . . Robots Melted 2 | . . . . . 1 1 Combat Hostiles 2 | . . . . . 1 1 Parts Melted 5 | . . . . 1 . 4 Heat Transferred 3367 | . 444 . . 259 1073 1591 Parts Sabotaged . | . . . . . . . Parts Stolen . | . . . . . . . Parts Stripped . | . . . . . . . Power Chain Reactions . | . . . . . . . Alert | -11 -10 -10 -10 -9 -8 -7 ------- Run | Yrd Mat Min Exi Min Mat Fac Peak Influence 424 | . 203 . . 60 263 424 Initial 119 | . . . . . 23 119 Average 82 | . 67 . . 45 105 279 Maximum Alert Level 2 | . 1 . . . 1 2 Low Security (%) 79 | 100 86 100 . 100 94 9 Level 1 19 | . 13 . . . 5 85 Level 2 . | . . . . . . 4 Level 3 . | . . . . . . . Level 4 . | . . . . . . . Level 5 . | . . . . . . . High Security . | . . . . . . . Max Security . | . . . . . . . Squads Dispatched 9 | . 1 1 . . 2 5 Investigation 1 | . . 1 . . . . Extermination 2 | . . . . . . 2 Reinforcement 5 | . 1 . . . 2 2 Assault . | . . . . . . . Garrison 1 | . . . . . . 1 Intercept . | . . . . . . . Searches Triggered . | . . . . . . . Construction Impeded 1 | . . . . . . 1 Haulers Reinforced . | . . . . . . . Active Scanning Responses . | . . . . . . . Cargo Convoy Interrupts . | . . . . . . . Stealth | -11 -10 -10 -10 -9 -8 -7 --------- Run | Yrd Mat Min Exi Min Mat Fac Distress Signals 3 | . . . . . 3 . Communications Jammed . | . . . . . . . Distress Signals . | . . . . . . . Times Spotted 67 | . 11 . . 7 19 30 Peak Tracking Total 5 | . 4 . . 4 4 5 Tactical Retreats 3 | . 1 . . . 1 1 Traps | -11 -10 -10 -10 -9 -8 -7 ------- Run | Yrd Mat Min Exi Min Mat Fac Traps Triggered 1 | . 1 . . . . . Indirectly . | . . . . . . . Trap Hack Attempts . | . . . . . . . Triggered . | . . . . . . . Disarmed . | . . . . . . . Reprogrammed . | . . . . . . . Reused . | . . . . . . . Traps Extracted . | . . . . . . . Installed . | . . . . . . . Triggered . | . . . . . . . Machines | -11 -10 -10 -10 -9 -8 -7 ---------- Run | Yrd Mat Min Exi Min Mat Fac Machines Disabled 5 | . . . . . 2 3 Max in Single Turn 1 | . . . . . 1 1 Machines Repaired . | . . . . . . . Machines Dismantled . | . . . . . . . Machines Sabotaged . | . . . . . . . Overloaded Fab Kills . | . . . . . . . Hacking | -11 -10 -10 -10 -9 -8 -7 --------- Run | Yrd Mat Min Exi Min Mat Fac Machines Accessed 9 | . 1 1 4 . 1 2 Terminals 3 | . 1 . . . 1 1 Fabricators . | . . . . . . . Repair Stations . | . . . . . . . Recycling Units 1 | . . . . . . 1 Scanalyzers . | . . . . . . . Garrison Access . | . . . . . . . Total Hacks 9 | . 1 1 4 . 1 2 Successful 7 | . 1 1 4 . . 1 Failed 2 | . . . . . 1 1 Catastrophic 1 | . . . . . 1 . Database Lockouts . | . . . . . . . Manual 2 | . . . . . 2 . Terminals 3 | . 1 . . . 1 1 Fabricators . | . . . . . . . Repair Stations . | . . . . . . . Recycling Units 1 | . . . . . . 1 Scanalyzers . | . . . . . . . Garrison Access . | . . . . . . . Terminal Hacks 6 | . 1 1 4 . . . Record 4 | . . . 4 . . . Robot Analysis 1 | . 1 . . . . . Open Door 1 | . . 1 . . . . Fabricator Hacks . | . . . . . . . Repair Station Hacks . | . . . . . . . Recycling Unit Hacks 1 | . . . . . . 1 Process 1 | . . . . . . 1 Scanalyzer . | . . . . . . . Garrison Access Hacks . | . . . . . . . Unauthorized Hacks . | . . . . . . . Terminals . | . . . . . . . Fabricators . | . . . . . . . Repair Stations . | . . . . . . . Recycling Units . | . . . . . . . Scanalyzers . | . . . . . . . Garrison Access . | . . . . . . . Data Cores Recovered 1 | . . . . . 1 . Used . | . . . . . . . Hacking Detections 2 | . 1 . . . 1 . Full Trace Events . | . . . . . . . Feedback Events . | . . . . . . . Feedback Blocked . | . . . . . . . Robot Schematics Acquired . | . . . . . . . Robots Built . | . . . . . . . Authchips . | . . . . . . . Time . | . . . . . . . Total Robot Build Rating . | . . . . . . . Part Schematics Acquired . | . . . . . . . Parts Built . | . . . . . . . Authchips . | . . . . . . . Time . | . . . . . . . Total Part Build Rating . | . . . . . . . Parts Repaired . | . . . . . . . Time . | . . . . . . . Parts Recycled . | . . . . . . . Recycled Matter 17 | . . . . . . 17 Retrieved Matter . | . . . . . . . Retrieved Components . | . . . . . . . Parts Scanalyzed . | . . . . . . . Part Schematics Acquired . | . . . . . . . Parts Damaged . | . . . . . . . Bothacking | -11 -10 -10 -10 -9 -8 -7 ------------ Run | Yrd Mat Min Exi Min Mat Fac Used RIF Installer . | . . . . . . . Robots Hacked . | . . . . . . . Non-combat . | . . . . . . . Combat . | . . . . . . . Robot Hacks Applied . | . . . . . . . Relay Couplers Released . | . . . . . . . Fabnet Peak Effective % . | . . . . . . . Robots Rewired . | . . . . . . . Allies Hacked . | . . . . . . . Hacks Repelled . | . . . . . . . Allies | -11 -10 -10 -10 -9 -8 -7 -------- Run | Yrd Mat Min Exi Min Mat Fac Total Allies . | . . . . . . . Largest Group . | . . . . . . . Highest-Rated Group . | . . . . . . . Highest-Rated Ally . | . . . . . . . Total Orders . | . . . . . . . Ally Attacks . | . . . . . . . Total Damage . | . . . . . . . Kills . | . . . . . . . Allies Corrupted . | . . . . . . . Allies Melted . | . . . . . . . Intel | -11 -10 -10 -10 -9 -8 -7 ------- Run | Yrd Mat Min Exi Min Mat Fac Robot Analysis Total 1 | . 1 . . . . . Derelict Logs Recovered 1 | . . 1 . . . . Drone Launches . | . . . . . . . Drone Recoveries . | . . . . . . . Exploration | -11 -10 -10 -10 -9 -8 -7 ------------- Run | Yrd Mat Min Exi Min Mat Fac Turns Passed 6257 | 85 867 1937 1665 103 744 856 Spaces Moved 2393 | 51 411 604 521 40 424 342 Core 37 | 8 . . . . . 29 Treads 1579 | 43 411 604 521 . . . Legs . | . . . . . . . Wheels 777 | . . . . 40 424 313 Hover . | . . . . . . . Flight . | . . . . . . . Fastest Speed 50 | 50 160 320 320 130 123 123 Average Speed 238 | 143 192 320 320 130 126 191 Slowest Speed 1600 | 160 320 320 320 130 145 1600 Overloaded Moves . | . . . . . . . Propulsion Burnouts . | . . . . . . . Robots Hopped . | . . . . . . . Cave-ins Triggered . | . . . . . . . Exploration Rate (%) 43 | 4 67 90 92 7 32 13 Regions Visited 6 Branch Regions 3 Pre-discovered Areas 1 | . . 1 . . . . Known Exits Taken 1 | . . . . . 1 . Unknown Exits Taken 5 | 1 1 1 1 1 . . Scrap Searched 1 | . . 1 . . . . Spaces Dug . | . . . . . . . Terrain Destroyed 91 | . 34 . . . 3 54 Melee . | . . . . . . . Projectile 8 | . . . . . 3 5 AOE 83 | . 34 . . . . 49 Terrain Rammed . | . . . . . . . Walls Destroyed . | . . . . . . . Machines Disabled . | . . . . . . . Actions | -11 -10 -10 -10 -9 -8 -7 --------- Run | Yrd Mat Min Exi Min Mat Fac Total 2659 | 63 448 608 520 59 515 446 Wait 9 | . . . . . 2 7 Move 2387 | 50 410 603 520 39 423 342 Hop . | . . . . . . . Pick Up 54 | 9 6 4 . . 24 11 Fast Attach 1 | . . . . . . 1 Attach 32 | 4 4 . . 1 7 16 Detach 4 | . 1 . . . . 3 Swap 14 | . 4 . . 2 2 6 Drop 12 | . 1 . . 1 3 7 Fire 146 | . 22 1 . 16 54 53 Melee . | . . . . . . . Ram . | . . . . . . . Kick . | . . . . . . . Crush . | . . . . . . . Escape Stasis . | . . . . . . . Rewire . | . . . . . . . Trap . | . . . . . . . Miscellaneous . | . . . . . . . Route ------- -11/Scrapyard -10/Materials (discovered 4 exits: [*Mat x2] / *Min x2) -10/Mines (discovered 3 exits: [*Mat x2] / *Exi) -10/Exiles (discovered 2 exits: [*Min x2]) -9/Mines -8/Materials -7/Factory History --------- Turn | Location | Event 15 | -11/Scrapyard | Discovered new exit (range 16) 86 | -11/Scrapyard | Entered Materials 86 | -10/Materials | Discovered new exit (range 8) 313 | -10/Materials | Build established: Mutant 486 | -10/Materials | Discovered new exit (range 16) 658 | -10/Materials | Discovered new exit (range 14) 818 | -10/Materials | Discovered new exit (range 16) 953 | -10/Materials | Entered Mines 1168 | -10/Mines | Found a hidden stash of uninstalled traps 1277 | -10/Mines | Received a Rocket Launcher from a helpful Derelict 1490 | -10/Mines | Met a Derelict shopkeep closing up shop 1558 | -10/Mines | Learned Materials security intel 1590 | -10/Mines | Discovered new exit (range 8) 1756 | -10/Mines | Discovered new exit (range 6) 2000 | -10/Mines | Learned location of Storage (-7) 2051 | -10/Mines | A weapon hastily lodged in a ceiling crevice suddenly fell to the ground 2714 | -10/Mines | Discovered new exit (range 10) 2778 | -10/Mines | Deemed a non-threat by the Exiles lab entrance 2890 | -10/Mines | Entered Exiles 2890 | -10/Exiles | Found Exiles lab abandoned 2939 | -10/Exiles | Discovered new exit (range 15) 4516 | -10/Exiles | Discovered new exit (range 14) 4555 | -10/Exiles | Entered Mines 4634 | -9/Mines | Discovered new exit (range 10) 4658 | -9/Mines | Entered Materials 4658 | -8/Materials | Evolved 4 slots: Propulsion x1, Utility x2, Weapon x1 5333 | -8/Materials | Discovered new exit (range 5) 5383 | -8/Materials | Identified exit to Factory 5402 | -8/Materials | Entered Factory 5402 | -7/Factory | Evolved 2 slots: Utility x2 5815 | -7/Factory | Lost 4 parts (2n2u) 6073 | -7/Factory | Lost 4 parts (1p1n1u1w) 6243 | -7/Factory | Core integrity fell below 50% 6251 | -7/Factory | Core integrity fell below 20% 6255 | -7/Factory | Garrison activated, responded to threat 6258 | -7/Factory | Destroyed by L-41 Fighter with Axe Last Messages --------------- Critical hit (Burn: +37). Ion Cannon destroyed. Lgt. Deuterium Engine destroyed. Gauss Cannon severed. Med. Armor Plating severed. Pulse Rifle severed. Adv. Weight Redist. System destroyed. R-06 Scavenger collects Visual Processing Unit. R-06 Scavenger collects Imp. Sensor Array. U-05 Engineer destroyed. Critical hit (Burn: +37). K-01 Serf collects debris. Adv. Targeting Computer severed. R-06 Scavenger collects Imp. Heat Sink. K-01 Serf collects debris. K-01 Serf destroyed. R-06 Scavenger calls for garrison support. ALERT: Activating Garrison Access F001. G-47 Trooper knocked back. U-05 Engineer lays Concrete. Map ----- +----------------------------------------------------+ | ??????????????????????????????????? # # | | ?????????????????????????????????? # ! + | | ???????????????????????? ???? # # | | ???????????????????????# "?? ?"" """ # """ # | | ???????????????????????# "?? """ """ # """ # | | ???????????????????????# """ """ """ # """ # | | ???????????????????????# ######## | | ???????????????????????# """ """ """ | | ???????????????????????# ! """ """ """ ######## | | ???????????????????????# """ """ """ #??????? | | ???????????????????????# #??????? | | ??????????S"???????????# """ """ """ #??????? | | ???????????" ??????????# """ """ """ #??????? | | ?????"# #####+########## """ """ """ #??????? | | ????? %% #??????? | | ????# = """ """ """ #??????? | | ????# ""% """ """ #??????? | | ????" % % % % " " #??????? | | ????# ! #??????? | | ????# #??????? | | ????? * u % ##??????? | | ????? ############# g!g r### #???????? | | ?????? ??? ?? ! = # #???????? | | ??????????# ]! g # # +???????? | | ??????????+ ! ]] # l ### #???????? | | ??????????# !] @ #?# #???????? | | ??????????# = #?# #???????? | | ??????????########+#### #?## ##???????? | | ??????????????????????## #??# #????????? | | ???????????????????????# #??# #????????? | | ???????????????????????# #??# #????????? | | ???????????????????????# #??# #????????? | | ???????????????????????# #??#^^ #????????? | | ??????????????????????? #??# #????????? | | ??????????????????????? #??# #????????? | | ??????????????????????? ###### #??# #????????? | | ??????????????????????? ?????? #??# #????????? | | ??????????????????????? ??????? #??# #????????? | | ?????????????????????? ??????? ???# #????????? | | ?????????????????????? ?????????????# #????????? | | ????????????????????????????????????# #????????? | | ????????????????????????????????????# #????????? | | ????????????????????????????????????# #????????? | | ????????????????????????????????????# #????????? | | ????????????????????????????????????? ?????????? | | ????????????????????????????????????? ?????????? | | ????????????????????????????????????? ?????????? | | ?????????????????????????????????????????????????? | | ?????????????????????????????????????????????????? | | ?????????????????????????????????????????????????? | +----------------------------------------------------+ Best States ------------- Heat Dissipation 34 Energy Generation 14 Energy Capacity 265 Matter Stores 300 Matter Capacity 300 Sight Range 16 Terrain Scan Density 10 Additional Mass Support 9 Armor Coverage 600 Evasion (%) 40 Targeting Accuracy 8 Recoil Reduction 2 Item Schematics ----------------- None Robot Schematics ------------------ None Fabricated ------------ Nothing Alien Tech Used ----------------- None Achievements -------------- None Challenges ------------ None Game ------ Seed ComponentBackupTrap Manual? 0 Play Time 00:38:56 Cumulative 5.7 hours Start 2025.03.08 @ 22:05:57 End 2025.03.08 @ 22:48:33 Sessions 1 Manual Loads 0 Difficulty Rogue Special Mode None Game No. 10 Rogue 7 Adventurer 3 Explorer 0 Win Type - Total 0 Types 0/0/0/0/0/0/0/0/0 Lore% 8 Gallery% 8 Achievement% 11 Wizard Run 0 Options --------- Layout 1 ASCII 0 Keyboard 0 Movement Mouse Keybinds 0 Fullscreen 1 Font 24/Smallcaps Map View 50x35 Zoom Use 0% Tactical HUD 0 Map Filters NONE Filters NONE Steam 1 RUN: 71e6f808-8c47-42ce-86d8-e38dc08bd5ba